bitfinex/quotes_SOLUSD_20250607
["timestamp","ask_amount","ask_price","bid_price","bid_amount"]
[1749337724896,3.78521735,150.83,150.82,2.48171209]
[1749337725290,3.78521735,150.83,150.81,10.52]
[1749337725476,3.78521735,150.83,150.82,2.48173547]
[1749337726196,3.78521735,150.83,150.81,10.52]
[1749337726398,3.78521735,150.83,150.82,2.48176363]
[1749337726598,3.78521735,150.83,150.82,2.48515244]
[1749337726903,3.78521735,150.83,150.81,10.52]
[1749337727105,3.78521735,150.83,150.82,2.48512902]
[1749337727278,3.78521735,150.84,150.82,2.4851288]
[1749337727478,3.78521735,150.84,150.83,2.48512859]
[1749337727704,3.78521735,150.84,150.81,10.52]
[1749337727899,3.78521735,150.84,150.82,13.00512837]
[1749337728200,3.78521735,150.84,150.83,2.48510061]
[1749337728505,3.78521735,150.84,150.83,2.48510039]
[1749337728885,3.78521735,150.84,150.83,2.48523336]
[1749337729206,3.78521735,150.84,150.83,2.48526134]
[1749337731081,3.78521735,150.84,150.83,2.48519139]
[1749337731384,3.78521735,150.84,150.82,10.52]
[1749337731595,3.78521735,150.84,150.83,2.4851916]
[1749337731905,3.78521735,150.84,150.83,2.48675121]
[1749337732401,3.78521735,150.84,150.83,2.4867539]
[1749337732602,3.78521735,150.84,150.82,10.52]
[1749337732806,3.78521735,150.84,150.83,2.48684415]
[1749337733007,3.78521735,150.84,150.83,2.48684394]
[1749337733382,3.78521735,150.84,150.83,2.48680194]
[1749337733891,3.78521735,150.84,150.83,2.48677395]
[1749337734806,3.78521735,150.84,150.83,2.48674139]
[1749337735004,3.78521735,150.84,150.82,10.52]
[1749337735306,3.78521735,150.84,150.83,2.48674617]
[1749337736091,3.78521735,150.84,150.83,2.48677132]
[1749337736291,3.78521735,150.84,150.82,10.52]
[1749337736612,3.78521735,150.84,150.83,2.48677154]
[1749337736797,3.78521735,150.84,150.83,2.48676676]
[1749337737603,26.0,150.85,150.83,2.48676676]
[1749337737908,3.78521735,150.84,150.82,10.52]
[1749337738114,3.78521735,150.84,150.83,2.48680646]
[1749337738312,3.78521735,150.84,150.83,2.48680624]
[1749337739911,3.78521735,150.84,150.83,2.48675087]
[1749337740106,3.78521735,150.84,150.83,2.48676938]
[1749337740306,3.78521735,150.84,150.83,2.48668539]
[1749337740706,3.78521735,150.84,150.83,2.48666994]
[1749337741414,3.78521735,150.84,150.82,10.52]
[1749337741916,3.78521735,150.84,150.83,2.48674354]
[1749337742224,3.78521735,150.84,150.83,2.48670133]
[1749337743098,3.78521735,150.84,150.82,10.52]
[1749337743617,3.78521735,150.84,150.83,2.48667132]
[1749337743823,3.78521735,150.84,150.82,10.52]
[1749337744121,3.78521735,150.84,150.83,2.48654109]
[1749337744436,3.78521735,150.84,150.83,2.48658275]
[1749337744925,3.78521735,150.84,150.83,2.48661067]
[1749337745421,3.78521735,150.84,150.82,10.52]
[1749337745624,3.78521735,150.84,150.83,2.48663754]
[1749337745921,3.78521735,150.84,150.83,2.48663732]
[1749337746124,3.78521735,150.84,150.83,2.48666417]
[1749337747432,3.78521735,150.84,150.83,2.48661766]
[1749337747607,3.78521735,150.84,150.83,2.48666602]
[1749337748737,3.78521735,150.84,150.82,10.52]
[1749337749009,3.78521735,150.84,150.83,2.48676397]
[1749337749205,3.78521735,150.84,150.83,2.48676376]
[1749337749531,3.78521735,150.84,150.83,2.48672056]
[1749337750829,3.78521735,150.84,150.82,10.52]
[1749337751221,3.78521735,150.84,150.83,2.48653533]
[1749337751814,3.78521735,150.84,150.82,10.52]
[1749337752008,3.78521735,150.84,150.83,2.48647469]
[1749337752209,3.78521735,150.84,150.83,2.48643574]
[1749337752536,3.78521735,150.84,150.82,10.52]
[1749337752832,3.78521735,150.84,150.83,2.48655223]
[1749337753329,3.78521735,150.84,150.83,2.48655202]
[1749337753936,3.78521735,150.84,150.83,2.48655145]
[1749337754143,3.78521735,150.84,150.83,2.48655136]
[1749337754348,3.78521735,150.84,150.82,10.52]
[1749337754633,3.78521735,150.84,150.83,2.48654683]
[1749337754815,3.78521735,150.84,150.83,2.48663545]
[1749337755534,3.78521735,150.84,150.83,2.4864499]
[1749337755834,3.78521735,150.84,150.83,2.48639406]
[1749337756210,3.78521735,150.84,150.83,2.48635218]
[1749337756429,3.78521735,150.84,150.83,2.4863196]
[1749337757230,3.78521735,150.84,150.82,10.52]
[1749337757434,3.78521735,150.84,150.83,2.48641494]
[1749337757740,3.78521735,150.84,150.82,10.52]
[1749337757929,3.78521735,150.84,150.83,2.48647079]
[1749337758136,3.78521735,150.84,150.83,2.48647537]
[1749337758739,3.78521735,150.84,150.82,10.52]
[1749337758942,26.0,150.85,150.83,2.48651956]
[1749337759147,29.78521735,150.85,150.82,17.15039751]
[1749337759516,29.78521735,150.85,150.83,2.48648984]
[1749337759716,29.78521735,150.85,150.82,17.15039751]
[1749337759918,29.78521735,150.85,150.83,2.48648984]
[1749337760221,29.78521735,150.85,150.82,17.15039751]
[1749337760440,29.78521735,150.85,150.83,2.48630835]
[1749337760745,29.78521735,150.85,150.84,2.48630835]
[1749337761031,29.78521735,150.85,150.82,17.15039751]
[1749337761340,26.0,150.85,150.83,2.48628043]
[1749337761543,26.0,150.85,150.82,17.15039751]
[1749337761844,26.0,150.85,150.83,2.48628021]
[1749337762018,26.0,150.85,150.84,2.48628021]
[1749337762214,29.78521735,150.85,150.84,2.48628021]
[1749337762620,29.78521735,150.85,150.82,17.15039751]
[1749337762824,26.0,150.85,150.83,2.48610284]
[1749337763034,26.0,150.85,150.82,17.15039751]
[1749337763242,29.78521735,150.85,150.82,17.15039751]
[1749337763418,29.78521735,150.85,150.83,2.4860783]
[1749337763618,29.78521735,150.85,150.84,2.4860783]
[1749337764341,6.18237556,150.9,150.84,2.48610049]
[1749337764547,6.18237556,150.9,150.82,17.15039751]
[1749337764548,26.0,150.87,150.82,20.93561486]
[1749337764854,3.78521735,150.87,150.84,6.62954123]
[1749337765036,3.78521735,150.87,150.85,2.48583957]
[1749337765232,3.78521735,150.87,150.84,6.62954123]
[1749337765529,3.78521735,150.87,150.85,2.48582618]
[1749337765720,3.78521735,150.87,150.83,6.62998077]
[1749337765923,26.0,150.89,150.84,2.48436311]
[1749337766129,3.78521735,150.87,150.85,2.48434715]
[1749337766328,26.0,150.89,150.83,10.41519812]
[1749337766539,3.78521735,150.87,150.84,2.48434737]
[1749337766745,3.78521735,150.87,150.83,10.41519812]
[1749337766957,3.78521735,150.87,150.85,6.62909707]
[1749337768237,3.78521735,150.87,150.83,6.62998077]
[1749337768538,3.78521735,150.87,150.84,2.48439738]
[1749337768744,3.78521735,150.87,150.83,6.62998077]
[1749337768945,3.78521735,150.87,150.84,2.48442412]
[1749337769142,3.78521735,150.87,150.85,2.48442412]
[1749337769472,3.78521735,150.87,150.83,6.62998077]
[1749337769822,3.78521735,150.87,150.84,2.4838645]
[1749337770137,3.78521735,150.87,150.83,6.62998077]
[1749337770437,3.78521735,150.86,150.84,2.48387236]
[1749337770657,3.78521735,150.86,150.85,2.48392829]
[1749337771220,3.78521735,150.86,150.82,102.10521735]
[1749337771541,3.78521735,150.86,150.83,2.48392853]
[1749337771725,3.78521735,150.86,150.84,2.48392853]
[1749337771926,3.78521735,150.86,150.83,6.629882]
[1749337772341,3.78521735,150.86,150.84,2.4838584]
[1749337772534,3.78521735,150.86,150.85,2.483296]
[1749337773041,3.78521735,150.86,150.85,2.48322568]
[1749337773341,3.78521735,150.86,150.83,6.629882]
[1749337773544,3.78521735,150.86,150.84,2.48319053]
[1749337773760,3.78521735,150.86,150.85,2.48319053]
[1749337774243,3.78521735,150.87,150.83,6.629882]
[1749337774624,3.78521735,150.87,150.84,2.48314244]
[1749337774845,3.78521735,150.87,150.85,2.48314244]
[1749337775025,3.78521735,150.87,150.83,6.629882]
[1749337775534,3.78521735,150.87,150.84,2.48312899]
[1749337775732,3.78521735,150.87,150.85,2.48312899]
[1749337775934,3.78521735,150.87,150.83,6.629882]
[1749337776135,3.78521735,150.87,150.84,2.48314278]
[1749337776320,3.78521735,150.87,150.83,6.629882]
[1749337776719,3.78521735,150.87,150.84,2.48314278]
[1749337776932,3.78521735,150.87,150.85,2.48325438]
[1749337777139,3.78521735,150.87,150.83,6.62984248]
[1749337777336,3.78521735,150.87,150.84,2.48304813]
[1749337777540,3.78521735,150.87,150.85,2.48304813]
[1749337777741,3.78521735,150.87,150.83,6.62984248]
[1749337778051,3.78521735,150.87,150.84,2.48256297]
[1749337778240,3.78521735,150.87,150.83,6.62984248]
[1749337778445,3.78521735,150.87,150.84,2.48256297]
[1749337778644,3.78521735,150.87,150.83,6.62984248]
[1749337778842,3.78521735,150.87,150.84,2.48261864]
[1749337779046,3.78521735,150.87,150.85,2.48261864]
[1749337779253,3.78521735,150.86,150.83,6.62984248]
[1749337779443,3.78521735,150.86,150.84,2.48261908]
[1749337779647,3.78521735,150.86,150.85,2.48261908]
[1749337779844,3.78521735,150.86,150.83,6.62984248]
[1749337780038,3.78521735,150.86,150.84,2.48265601]
[1749337780241,3.78521735,150.86,150.83,6.62984248]
[1749337780430,3.78521735,150.86,150.84,12.98265579]
[1749337780634,3.78521735,150.86,150.84,10.5]
[1749337782657,3.78521735,150.87,150.84,10.5]
[1749337783454,3.78521735,150.87,150.84,17.12948233]
[1749337783941,3.78521735,150.87,150.85,2.48223204]
[1749337784140,18.64964886,150.88,150.84,17.12948233]
[1749337784358,3.78521735,150.87,150.85,2.48222852]
[1749337784662,3.78521735,150.86,150.84,10.5]
[1749337785657,3.78521735,150.86,150.85,2.48228504]
[1749337785955,66.56,150.9,150.85,2.48228482]
[1749337786160,3.78521735,150.88,150.86,2.48209638]
[1749337786341,3.78521735,150.87,150.84,104.9295284]
[1749337786545,3.78521735,150.87,150.85,2.48146192]
[1749337786748,3.78521735,150.87,150.84,104.9295284]
[1749337786938,3.78521735,150.86,150.84,98.3]
[1749337787257,3.78521735,150.86,150.84,10.5]
[1749337792974,6.62734442,150.89,150.84,10.5]
[1749337793164,3.78521735,150.86,150.84,10.5]
[1749337795350,3.78521735,150.86,150.85,10.48]
[1749337800566,29.06352854,150.86,150.85,10.48]
[1749337802867,18.64964886,150.85,150.81,10.48]
[1749337803054,3.78521735,150.82,150.81,10.48]
[1749337805251,3.78521735,150.82,150.81,10.48]
[1749337809377,18.64964886,150.85,150.81,10.48]
[1749337809679,3.78521735,150.83,150.81,10.48]
[1749337812084,3.78521735,150.82,150.81,10.48]
[1749337816886,3.78521735,150.83,150.81,10.48]
[1749337819565,3.78521735,150.82,150.81,10.48]
[1749337827995,18.64964886,150.85,150.81,10.48]
[1749337828199,3.78521735,150.83,150.81,10.48]
[1749337835606,3.78521735,150.82,150.81,10.48]
[1749337835794,3.78521735,150.82,150.81,12.96050758]
[1749337835993,3.78521735,150.82,150.81,12.9605078]
[1749337836489,3.78521735,150.82,150.81,12.96053573]
[1749337836695,3.78521735,150.82,150.81,10.48]
[1749337837619,3.78521735,150.82,150.81,12.96092928]
[1749337837820,3.78521735,150.82,150.81,12.96114939]
[1749337838690,3.78521735,150.82,150.81,10.48]
[1749337838920,3.78521735,150.82,150.81,12.96114939]
[1749337839619,3.78521735,150.82,150.81,10.48]
[1749337840003,3.78521735,150.82,150.81,12.96200387]
[1749337840195,3.78521735,150.82,150.81,10.48]
[1749337840396,3.78521735,150.82,150.81,12.96197592]
[1749337841323,3.78521735,150.82,150.81,10.48]
[1749337841497,3.78521735,150.82,150.81,12.96225806]
[1749337841818,3.78521735,150.82,150.81,12.96356802]
[1749337842316,3.78521735,150.82,150.81,12.96360997]
[1749337842692,3.78521735,150.82,150.81,12.96356802]
[1749337842914,3.78521735,150.82,150.81,10.48]
[1749337843124,3.78521735,150.82,150.81,12.96356802]
[1749337843814,3.78521735,150.82,150.81,12.96371543]
[1749337844405,3.78521735,150.82,150.81,12.96382731]
[1749337845116,3.78521735,150.82,150.81,10.48]
[1749337845320,3.78521735,150.82,150.81,12.96584985]
[1749337846512,3.78521735,150.82,150.81,12.96579386]
[1749337846897,3.78521735,150.82,150.81,10.48]
[1749337847101,3.78521735,150.82,150.81,12.96579386]
[1749337848134,3.78521735,150.82,150.81,12.96585307]
[1749337848302,3.78521735,150.82,150.81,12.96586707]
[1749337848494,3.78521735,150.82,150.81,12.96605713]
[1749337849721,3.78521735,150.82,150.81,12.96611831]
[1749337849901,3.78521735,150.82,150.81,10.48]
[1749337850520,3.78521735,150.82,150.81,12.96611639]
[1749337850718,3.78521735,150.82,150.81,10.48]
[1749337851023,3.78521735,150.82,150.81,12.96611639]
[1749337851821,3.78521735,150.82,150.81,12.96629201]
[1749337852021,3.78521735,150.82,150.81,12.96620802]
[1749337852231,3.78521735,150.82,150.81,12.96615203]
[1749337853227,3.78521735,150.83,150.81,12.96615203]
[1749337853535,3.78521735,150.83,150.81,10.48]
[1749337853903,3.78521735,150.83,150.82,2.48625259]
[1749337854205,3.78521735,150.83,150.82,2.48625237]
[1749337855119,3.78521735,150.83,150.81,10.48]
[1749337855517,3.78521735,150.83,150.82,2.48636458]
[1749337855715,3.78521735,150.83,150.82,2.48630837]
[1749337856523,3.78521735,150.83,150.81,10.48]
[1749337857121,3.78521735,150.83,150.82,2.48638308]
[1749337857301,3.78521735,150.83,150.82,2.48638303]
[1749337857706,3.78521735,150.83,150.81,10.48]
[1749337858110,3.78521735,150.83,150.82,2.48636468]
[1749337858312,3.78521735,150.83,150.81,10.48]
[1749337858729,3.78521735,150.83,150.82,2.48638555]
[1749337858914,3.78521735,150.83,150.81,10.48]
[1749337859303,3.78521735,150.83,150.82,2.48642529]
[1749337859502,3.78521735,150.83,150.82,2.48641099]
[1749337860329,3.78521735,150.83,150.82,2.48648337]
[1749337860721,3.78521735,150.83,150.81,10.48]
[1749337861024,3.78521735,150.83,150.82,2.48653959]
[1749337861224,3.78521735,150.83,150.82,2.48647365]
[1749337861413,3.78521735,150.83,150.82,2.48646905]
[1749337861615,3.78521735,150.83,150.81,10.48]
[1749337861821,3.78521735,150.83,150.82,2.48635727]
[1749337862516,3.78521735,150.83,150.82,2.48643165]
[1749337862726,18.64964886,150.85,150.82,2.48643165]
[1749337863040,47.18876216,150.86,150.81,17.11077417]
[1749337863203,3.78521735,150.84,150.81,17.11077417]
[1749337863723,3.78521735,150.84,150.82,2.48643654]
[1749337863925,3.78521735,150.84,150.81,17.11077417]
[1749337864133,3.78521735,150.83,150.82,2.48643654]
[1749337864306,3.78521735,150.83,150.81,17.11077417]
[1749337864708,3.78521735,150.83,150.82,2.48647847]
[1749337865232,3.78521735,150.83,150.82,2.48673232]
[1749337866026,3.78521735,150.83,150.82,2.48667219]
[1749337866219,3.78521735,150.83,150.81,10.48]
[1749337866532,3.78521735,150.83,150.82,2.48661085]
[1749337867605,3.78521735,150.83,150.82,2.48652944]
[1749337868113,3.78521735,150.83,150.81,10.48]
[1749337868317,3.78521735,150.83,150.82,2.48653718]
[1749337868518,3.78521735,150.83,150.81,10.48]
[1749337868731,3.78521735,150.83,150.82,2.48653773]
[1749337869710,3.78521735,150.83,150.82,2.48649568]
[1749337870036,3.78521735,150.83,150.82,2.48652349]
[1749337870229,3.78521735,150.83,150.81,10.48]
[1749337870425,3.78521735,150.83,150.82,2.48652349]
[1749337870625,3.78521735,150.83,150.82,2.4865239]
[1749337870812,6.62923407,150.85,150.82,2.4865239]
[1749337871018,25.27831119,150.86,150.81,10.48]
[1749337871220,25.27831119,150.86,150.82,2.48654645]
[1749337871221,3.78521735,150.83,150.82,2.48654645]
[1749337871735,3.78521735,150.83,150.82,2.48651665]
[1749337871923,3.78521735,150.83,150.81,10.48]
[1749337872123,3.78521735,150.83,150.82,2.48646087]
[1749337873535,3.78521735,150.83,150.82,2.48650286]
[1749337874038,3.78521735,150.83,150.82,2.48644686]
[1749337875041,3.78521735,150.83,150.82,2.486408]
[1749337875228,3.78521735,150.83,150.81,10.48]
[1749337875834,3.78521735,150.83,150.82,2.48644382]
[1749337876813,3.78521735,150.83,150.82,2.486478]
[1749337877432,3.78521735,150.83,150.81,10.48]
[1749337877634,3.78521735,150.83,150.82,2.48646572]
[1749337879034,3.78521735,150.83,150.82,2.48635855]
[1749337880242,3.78521735,150.83,150.81,10.48]
[1749337880540,3.78521735,150.83,150.82,2.48661047]
[1749337880746,3.78521735,150.83,150.81,10.48]
[1749337881133,6.62977603,150.84,150.82,2.48658332]
[1749337881443,3.78521735,150.83,150.81,10.48]
[1749337881739,3.78521735,150.82,150.81,10.48]
[1749337881945,3.78521735,150.82,150.81,12.96663267]
[1749337882649,3.78521735,150.82,150.81,10.48]
[1749337882827,3.78521735,150.82,150.81,12.96652729]
[1749337884031,3.78521735,150.82,150.81,10.48]
[1749337884350,3.78521735,150.82,150.81,12.96647143]
[1749337884554,3.78521735,150.82,150.81,12.96641543]
[1749337884721,3.78521735,150.82,150.81,10.48]
[1749337884922,3.78521735,150.82,150.81,12.96641543]
[1749337885752,3.78521735,150.82,150.81,12.96618737]
[1749337886125,3.78521735,150.82,150.81,2.48618737]
[1749337886326,3.78521735,150.82,150.81,2.48607206]
[1749337886540,3.78521735,150.82,150.81,2.48618405]
[1749337887341,3.78521735,150.82,150.81,2.48615277]
[1749337887552,3.78521735,150.82,150.8,10.48]
[1749337887931,3.78521735,150.82,150.81,2.48620898]
[1749337888441,3.78521735,150.82,150.81,2.48610137]
[1749337889237,3.78521735,150.82,150.81,2.48610128]
[1749337890651,3.78521735,150.82,150.81,2.48590845]
[1749337890959,18.64964886,150.84,150.81,2.48590845]
[1749337891136,6.62922178,150.85,150.8,17.1112918]
[1749337891137,3.78521735,150.83,150.8,17.1112918]
[1749337891324,3.78521735,150.83,150.81,2.48573986]
[1749337891526,3.78521735,150.83,150.82,2.48574008]
[1749337892348,3.78521735,150.83,150.8,17.1112918]
[1749337892557,3.78521735,150.83,150.81,2.48572869]
[1749337892764,3.78521735,150.83,150.82,2.48572869]
[1749337892939,3.78521735,150.83,150.82,2.48573037]
[1749337894453,3.78521735,150.83,150.82,2.48566083]
[1749337894954,3.78521735,150.83,150.8,17.1112918]
[1749337895365,3.78521735,150.83,150.81,2.48566131]
[1749337895547,3.78521735,150.83,150.82,2.48566131]
[1749337896261,3.78521735,150.83,150.82,2.48572935]
[1749337896442,3.78521735,150.83,150.82,2.48578073]
[1749337896759,3.78521735,150.83,150.82,2.48575274]
[1749337897155,3.78521735,150.83,150.8,10.48]
[1749337897338,3.78521735,150.83,150.81,2.48585092]
[1749337897538,3.78521735,150.83,150.8,10.48]
[1749337897747,3.78521735,150.83,150.81,2.48586117]
[1749337897957,3.78521735,150.83,150.8,10.48]
[1749337898265,3.78521735,150.83,150.81,2.48585774]
[1749337898470,3.78521735,150.83,150.8,10.48]
[1749337898644,3.78521735,150.83,150.81,2.48594182]
[1749337898875,3.78521735,150.83,150.8,10.48]
[1749337899044,3.78521735,150.83,150.81,2.48584891]
[1749337899271,3.78521735,150.82,150.8,10.48]
[1749337899451,3.78521735,150.82,150.81,2.48587734]
[1749337899952,3.78521735,150.82,150.8,10.48]
[1749337900558,3.78521735,150.82,150.81,2.48587926]
[1749337901376,3.78521735,150.82,150.8,10.48]
[1749337901563,3.78521735,150.82,150.81,2.48581154]
[1749337903154,3.78521735,150.82,150.81,2.48573655]
[1749337903475,3.78521735,150.82,150.81,2.48576454]
[1749337904974,3.78521735,150.82,150.8,10.48]
[1749337905274,3.78521735,150.82,150.81,2.48566805]
[1749337905457,3.78521735,150.82,150.81,2.48566783]
[1749337905779,3.78521735,150.82,150.81,2.48555587]
[1749337906077,3.78521735,150.82,150.81,2.48556369]
[1749337906668,3.78521735,150.82,150.81,2.48560883]
[1749337907055,3.78521735,150.82,150.8,10.48]
[1749337907257,3.78521735,150.82,150.81,2.48560905]
[1749337907455,3.78521735,150.82,150.8,10.48]
[1749337907680,3.78521735,150.82,150.81,2.48560883]
[1749337907880,3.78521735,150.82,150.81,2.48560905]
[1749337908667,3.78521735,150.82,150.81,2.48559937]
[1749337909074,3.78521735,150.82,150.8,10.48]
[1749337909381,3.78521735,150.82,150.81,2.48552096]
[1749337909686,3.78521735,150.82,150.81,2.48552074]
[1749337910078,3.78521735,150.82,150.81,2.48554873]
[1749337910777,3.78521735,150.82,150.81,2.48552074]
[1749337910966,3.78521735,150.82,150.8,10.48]
[1749337911164,3.78521735,150.82,150.81,2.48552096]
[1749337911367,3.78521735,150.82,150.81,2.485409]
[1749337911955,3.78521735,150.82,150.8,10.48]
[1749337912160,3.78521735,150.82,150.81,2.48546095]
[1749337912373,3.78521735,150.82,150.81,2.48554709]
[1749337912576,3.78521735,150.82,150.8,10.48]
[1749337912763,3.78521735,150.82,150.81,2.4855753]
[1749337913176,3.78521735,150.83,150.81,2.4855753]
[1749337913383,3.78521735,150.83,150.82,2.48557508]
[1749337913910,3.78521735,150.83,150.82,2.48554665]
[1749337914261,3.78521735,150.83,150.8,10.48]
[1749337914471,3.78521735,150.83,150.81,2.48563796]
[1749337914672,3.78521735,150.83,150.82,2.48566573]
[1749337915073,3.78521735,150.83,150.8,10.48]
[1749337915271,3.78521735,150.83,150.81,2.48584603]
[1749337915571,3.78521735,150.83,150.8,10.48]
[1749337915772,3.78521735,150.83,150.81,2.48584624]
[1749337915967,3.78521735,150.83,150.8,10.48]
[1749337916164,3.78521735,150.83,150.81,2.48584624]
[1749337916363,3.78521735,150.83,150.8,10.48]
[1749337916565,3.78521735,150.82,150.81,2.48590245]
[1749337917374,3.78521735,150.83,150.81,2.48590245]
[1749337917578,18.64964886,150.84,150.8,10.48]
[1749337917788,6.62910175,150.85,150.81,2.48599312]
[1749337917789,3.78521735,150.83,150.81,2.48599312]
[1749337917981,3.78521735,150.83,150.8,10.48]
[1749337918184,3.78521735,150.83,150.81,2.48599353]
[1749337918480,3.78521735,150.83,150.8,10.48]
[1749337918687,3.78521735,150.83,150.81,2.48599353]
[1749337918896,3.78521735,150.83,150.8,10.48]
[1749337919093,3.78521735,150.83,150.81,2.48599353]
[1749337919387,3.78521735,150.83,150.8,10.48]
[1749337919595,3.78521735,150.83,150.81,2.48625514]
[1749337919892,3.78521735,150.83,150.8,10.48]
[1749337920272,3.78521735,150.83,150.81,2.48622695]
[1749337920478,3.78521735,150.83,150.8,10.48]
[1749337920678,3.78521735,150.83,150.81,2.48627012]
[1749337920878,3.78521735,150.83,150.8,10.48]
[1749337921084,3.78521735,150.83,150.81,2.48629834]
[1749337921287,3.78521735,150.83,150.8,10.48]
[1749337921593,3.78521735,150.83,150.81,2.48629374]
[1749337921773,3.78521735,150.83,150.8,10.48]
[1749337921973,3.78521735,150.83,150.81,2.48629394]
[1749337922286,3.78521735,150.83,150.8,10.48]
[1749337922488,3.78521735,150.83,150.81,2.48618173]
[1749337922686,3.78521735,150.83,150.8,10.48]
[1749337922992,3.78521735,150.83,150.81,2.48618173]
[1749337923191,3.78521735,150.83,150.82,2.4863637]
[1749337923488,3.78521735,150.83,150.82,2.48636348]
[1749337924180,3.78521735,150.83,150.82,2.48639148]
[1749337925090,3.78521735,150.83,150.82,2.48639661]
[1749337925288,3.78521735,150.83,150.8,10.48]
[1749337925470,3.78521735,150.83,150.81,2.486399]
[1749337925790,3.78521735,150.83,150.82,2.48639879]
[1749337926692,3.78521735,150.83,150.8,10.48]
[1749337926992,3.78521735,150.83,150.81,2.48648802]
[1749337927295,3.78521735,150.83,150.82,2.4864878]
[1749337927593,3.78521735,150.83,150.8,10.48]
[1749337927787,3.78521735,150.83,150.81,2.48646897]
[1749337927987,3.78521735,150.83,150.8,10.48]
[1749337928185,3.78521735,150.83,150.81,2.48646897]
[1749337928388,3.78521735,150.83,150.8,10.48]
[1749337928587,3.78521735,150.83,150.81,2.48641786]
[1749337928787,3.78521735,150.83,150.8,10.48]
[1749337929197,3.78521735,150.83,150.81,2.48641786]
[1749337929499,3.78521735,150.83,150.8,10.48]
[1749337929678,3.78521735,150.83,150.81,2.48641764]
[1749337929879,3.78521735,150.83,150.8,10.48]
[1749337930075,3.78521735,150.83,150.81,2.48649102]
[1749337930278,3.78521735,150.83,150.8,10.48]
[1749337930795,3.78521735,150.83,150.81,2.48645864]
[1749337931006,3.78521735,150.83,150.8,10.48]
[1749337931198,3.78521735,150.83,150.81,2.48648664]
[1749337931496,3.78521735,150.83,150.8,10.48]
[1749337931794,3.78521735,150.83,150.81,2.48648642]
[1749337931997,3.78521735,150.83,150.8,10.48]
[1749337932202,3.78521735,150.83,150.81,2.4865008]
[1749337932394,3.78521735,150.83,150.8,10.48]
[1749337932587,3.78521735,150.83,150.81,2.4864497]
[1749337932788,3.78521735,150.83,150.8,10.48]
[1749337932991,3.78521735,150.83,150.81,2.4864497]
[1749337933188,3.78521735,150.83,150.8,10.48]
[1749337933377,3.78521735,150.83,150.81,2.4864777]
[1749337933701,3.78521735,150.83,150.8,10.48]
[1749337933906,3.78521735,150.83,150.81,2.48632751]
[1749337934082,3.78521735,150.83,150.82,2.48631055]
[1749337934281,3.78521735,150.83,150.8,10.48]
[1749337934496,3.78521735,150.83,150.81,2.48631014]
[1749337934699,3.78521735,150.83,150.8,10.48]
[1749337934882,3.78521735,150.83,150.81,2.48630795]
[1749337935082,3.78521735,150.83,150.82,2.48630795]
[1749337935500,3.78521735,150.83,150.82,2.48636413]
[1749337935807,3.78521735,150.83,150.82,2.48633614]
[1749337936776,3.78521735,150.83,150.8,10.48]
[1749337936977,3.78521735,150.83,150.81,2.48633657]
[1749337937175,3.78521735,150.83,150.8,10.48]
[1749337937398,3.78521735,150.83,150.81,2.48645364]
[1749337937706,3.78521735,150.83,150.82,2.48645343]
[1749337937891,3.78521735,150.83,150.82,2.48642543]
[1749337938200,3.78521735,150.83,150.82,2.48642521]
[1749337938783,3.78521735,150.83,150.82,2.48645321]
[1749337939481,3.78521735,150.83,150.8,10.48]
[1749337939680,18.64964886,150.86,150.8,10.48]
[1749337939681,1.6183,150.85,150.8,10.48]
[1749337939877,3.78521735,150.81,150.8,10.48]
[1749337940302,3.78521735,150.81,150.8,12.96677787]
[1749337940597,3.78521735,150.81,150.8,10.48]
[1749337940905,3.78521735,150.81,150.8,12.966889]
[1749337941602,3.78521735,150.81,150.8,12.96588874]
[1749337941786,3.78521735,150.81,150.8,10.48]
[1749337942203,3.78521735,150.81,150.8,12.96583914]
[1749337942408,3.78521735,150.81,150.8,10.48]
[1749337944401,3.78521735,150.81,150.8,12.96573255]
[1749337944802,3.78521735,150.81,150.8,12.96573266]
[1749337945387,10.41607737,150.81,150.8,10.48]
[1749337948402,3.78521735,150.81,150.8,10.48]
[1749337948588,3.78521735,150.81,150.8,12.96512176]
[1749337949104,3.78521735,150.81,150.8,10.48]
[1749337949484,3.78521735,150.81,150.8,12.9649275]
[1749337949703,3.78521735,150.81,150.8,10.48]
[1749337950005,3.78521735,150.81,150.8,12.9649275]
[1749337950203,3.78521735,150.81,150.8,12.96492751]
[1749337950407,10.41607737,150.81,150.8,10.48]
[1749337951607,22.43486621,150.81,150.8,10.48]
[1749337951990,29.06572623,150.81,150.8,10.48]
[1749337957406,18.64964886,150.8,150.76,10.46]
[1749337957600,3.78521735,150.77,150.76,10.46]
[1749337960218,3.78521735,150.78,150.76,10.46]
[1749337963937,3.78521735,150.77,150.76,10.46]